fUST/lending_fUST_20250824
["ID","MTS","AMOUNT","RATE_DAILY","PERIOD"]
[381073791,1755997842884,-480.0,0.00049315,2]
[381073792,1755997842894,-544.23,0.00049315,120]
[381073793,1755997842904,-480.0,0.00049315,120]
[381073794,1755997842914,-480.0,0.00049315,120]
[381073795,1755997842923,-1342.88,0.00049315,120]
[381073796,1755997842932,-577.61,0.00049315,120]
[381073797,1755997842941,-866.35,0.00049315,120]
[381073798,1755997842959,-151.0,0.00049315,120]
[381073799,1755997842970,-480.0,0.00049315,120]
[381073801,1755997842979,-480.0,0.00049315,120]
[381073804,1755997842989,-480.0,0.00049315,120]
[381073806,1755997842999,-480.0,0.00049315,120]
[381073807,1755997843008,-480.0,0.00049315,120]
[381073809,1755997843017,-480.0,0.00049315,120]
[381073811,1755997843026,-468.0444958,0.00049315,120]
[381073813,1755997843036,-480.0,0.00049315,120]
[381073816,1755997843045,-480.0,0.00049315,120]
[381073818,1755997843055,-480.0,0.00049315,120]
[381073820,1755997843065,-480.0,0.00049315,120]
[381073822,1755997843075,-480.0,0.00049315,120]
[381073824,1755997843084,-480.0,0.00049315,120]
[381073825,1755997843093,-869.17,0.00049315,120]
[381073826,1755997843103,-481.24765078,0.00049315,120]
[381073827,1755997843112,-480.0,0.00049315,120]
[381073828,1755997843122,-480.0,0.00049315,120]
[381073829,1755997843131,-1253.83,0.00049315,120]
[381073830,1755997843140,-480.0,0.00049315,120]
[381073831,1755997843150,-2757.81,0.00049315,120]
[381073832,1755997843160,-734.36,0.00049315,120]
[381073833,1755997843173,-480.0,0.00049315,120]
[381073834,1755997843183,-611.78,0.00049315,120]
[381073835,1755997843192,-1611.07,0.00049315,120]
[381073836,1755997843202,-462.4170831,0.00049315,120]
[381073837,1755997843211,-480.0,0.00049315,120]
[381073838,1755997843221,-151.0,0.00049315,120]
[381073839,1755997843232,-480.0,0.00049315,120]
[381073840,1755997843242,-480.0,0.00049315,120]
[381073841,1755997843252,-937.41,0.00049315,120]
[381073842,1755997843261,-480.0,0.00049315,120]
[381073843,1755997843271,-480.0,0.00049315,120]
[381073844,1755997843280,-480.0,0.00049315,120]
[381073845,1755997843290,-759.9,0.00049315,120]
[381073846,1755997843299,-494.93,0.00049315,120]
[381073847,1755997843309,-480.0,0.00049315,120]
[381073848,1755997843319,-480.0,0.00049315,120]
[381073849,1755997843330,-480.0,0.00049315,120]
[381073850,1755997843339,-350.7122928,0.00049315,120]
[381073851,1755997843348,-480.0,0.00049315,120]
[381073852,1755997843358,-480.0,0.00049315,120]
[381073853,1755997843367,-480.0,0.00049315,120]
[381073854,1755997843377,-1248.81,0.00049315,120]
[381073855,1755997843386,-2304.77,0.00049315,120]
[381073856,1755997843396,-480.0,0.00049315,120]
[381073857,1755997843408,-480.0,0.00049315,120]
[381073858,1755997843417,-151.0,0.00049315,120]
[381073859,1755997843427,-151.0,0.00049315,120]
[381073860,1755997843436,-480.0,0.00049315,120]
[381073861,1755997843445,-151.0,0.00049315,120]
[381073862,1755997843455,-788.19,0.00049315,120]
[381073864,1755997843464,-480.0,0.00049315,120]
[381073865,1755997843473,-441.54708374,0.00049315,120]
[381073866,1755997843482,-480.0,0.00049315,7]
[381073867,1755997843491,-2507.17,0.00049315,120]
[381073868,1755997843500,-480.0,0.00049315,120]
[381073869,1755997843510,-480.0,0.00049315,120]
[381073870,1755997843519,-480.0,0.00049315,120]
[381073871,1755997843528,-480.0,0.00049315,120]
[381073872,1755997843537,-480.0,0.00049315,120]
[381073873,1755997843547,-480.0,0.00049315,120]
[381073874,1755997843556,-1090.64,0.00049315,120]
[381073875,1755997843565,-480.0,0.00049315,120]
[381073876,1755997843575,-480.0,0.00049315,120]
[381073877,1755997843584,-480.0,0.00049315,120]
[381073878,1755997843594,-3075.27,0.00049315,120]
[381073879,1755997843603,-1603.33,0.00049315,120]
[381073880,1755997843612,-549.58,0.00049315,120]
[381073881,1755997843621,-480.0,0.00049315,120]
[381073882,1755997843631,-438.05266824,0.00049315,120]
[381073883,1755997843640,-2183.13,0.00049315,120]
[381073884,1755997843650,-480.0,0.00049315,120]
[381073885,1755997843659,-480.0,0.00049315,120]
[381073886,1755997843668,-3001.78,0.00049315,120]
[381073887,1755997843678,-480.0,0.00049315,120]
[381073888,1755997843688,-480.0,0.00049315,120]
[381073889,1755997843697,-480.0,0.00049315,120]
[381073890,1755997843706,-826.11,0.00049315,120]
[381073891,1755997843716,-480.0,0.00049315,120]
[381073892,1755997843726,-480.0,0.00049315,120]
[381073893,1755997843736,-481.30554191,0.00049315,120]
[381073894,1755997843745,-480.0,0.00049315,120]
[381073895,1755997843754,-502.77,0.00049315,120]
[381073896,1755997843763,-480.0,0.00049315,120]
[381073897,1755997843773,-480.0,0.00049315,120]
[381073898,1755997843783,-480.0,0.00049315,120]
[381073899,1755997843792,-861.83,0.00049315,120]
[381073900,1755997843801,-1866.46,0.00049315,120]
[381073901,1755997843811,-480.0,0.00049315,120]
[381073902,1755997843821,-480.0,0.00049315,120]
[381073903,1755997843830,-480.0,0.00049315,120]
[381073904,1755997843839,-480.0,0.00049315,120]
[381073905,1755997843849,-480.0,0.00049315,120]
[381073906,1755997843859,-480.0,0.00049315,120]
[381073907,1755997843868,-480.0,0.00049315,120]
[381073908,1755997843878,-480.0,0.00049315,120]
[381073909,1755997843887,-480.0,0.00049315,120]
[381073910,1755997843896,-480.0,0.00049315,120]
[381073911,1755997843906,-567.5,0.00049315,120]
[381073912,1755997843915,-578.53409317,0.00049315,120]
[381073913,1755997843925,-480.0,0.00049315,120]
[381073914,1755997843934,-480.0,0.00049315,120]
[381073915,1755997843944,-707.23,0.00049315,120]
[381073916,1755997843953,-427.59966899,0.00049315,120]
[381073917,1755997843963,-1212.89,0.00049315,120]
[381073918,1755997843973,-982.9,0.00049315,120]
[381073919,1755997843983,-480.0,0.00049315,120]
[381073920,1755997843992,-480.0,0.00049315,120]
[381073921,1755997844002,-480.0,0.00049315,120]
[381073922,1755997844012,-151.0,0.00049315,120]
[381073923,1755997844021,-480.0,0.00049315,120]
[381073924,1755997844030,-151.0,0.00049315,120]
[381073925,1755997844040,-480.0,0.00049315,120]
[381073926,1755997844049,-1032.92,0.00049315,120]
[381073927,1755997844058,-480.0,0.00049315,120]
[381073928,1755997844067,-480.0,0.00049315,120]
[381073929,1755997844076,-480.0,0.00049315,120]
[381073930,1755997844085,-480.0,0.00049315,120]
[381073931,1755997844095,-932.13,0.00049315,120]
[381073932,1755997844105,-941.52,0.00049315,120]
[381073933,1755997844115,-480.0,0.00049315,120]
[381073934,1755997844125,-480.0,0.00049315,120]
[381073935,1755997844134,-481.65101374,0.00049315,120]
[381073936,1755997844144,-772.3,0.00049315,120]
[381073937,1755997844153,-480.0,0.00049315,120]
[381073938,1755997844162,-480.0,0.00049315,120]
[381073939,1755997844171,-862.95,0.00049315,120]
[381073940,1755997844181,-480.0,0.00049315,120]
[381073941,1755997844190,-441.125781,0.00049315,120]
[381073942,1755997844200,-480.0,0.00049315,120]
[381073943,1755997844209,-480.0,0.00049315,120]
[381073944,1755997844219,-4330.88,0.00049315,120]
[381073945,1755997844229,-986.98,0.00049315,120]
[381073946,1755997844239,-480.0,0.00049315,120]
[381073947,1755997844248,-151.0,0.00049315,120]
[381073948,1755997844258,-464.4067897,0.00049315,120]
[381073949,1755997844267,-151.0,0.00049315,120]
[381073950,1755997844277,-480.0,0.00049315,120]
[381073951,1755997844286,-480.0,0.00049315,120]
[381073952,1755997844295,-151.0,0.00049315,120]
[381073953,1755997844305,-500.0,0.00049315,120]
[381073954,1755997844314,-656.36,0.00049315,120]
[381073955,1755997844325,-480.0,0.00049315,120]
[381073956,1755997844336,-480.0,0.00049315,120]
[381073957,1755997844345,-1316.15,0.00049315,120]
[381073958,1755997844355,-480.0,0.00049315,120]
[381073959,1755997844364,-7629.21,0.00049315,120]
[381073960,1755997844374,-480.0,0.00049315,120]
[381073961,1755997844383,-519.67,0.00049315,120]
[381073962,1755997844393,-1026.52,0.00049315,120]
[381073963,1755997844404,-977.03,0.00049315,120]
[381073964,1755997844414,-480.0,0.00049315,120]
[381073965,1755997844423,-1796.44,0.00049315,120]
[381073966,1755997844432,-823.6,0.00049315,120]
[381073967,1755997844441,-1023.49,0.00049315,120]
[381073968,1755997844452,-223.50102353,0.00049315,120]
[381073969,1755997844462,-480.0,0.00049315,120]
[381073970,1755997844472,-1154.71,0.00049315,120]
[381073971,1755997844481,-480.0,0.00049315,120]
[381073972,1755997844491,-1290.5,0.00049315,120]
[381073973,1755997844501,-480.0,0.00049315,120]
[381073974,1755997844510,-480.0,0.00049315,120]
[381073975,1755997844519,-584.96,0.00049315,120]
[381073976,1755997844528,-462.47203191,0.00049315,120]
[381073977,1755997844537,-2558.79,0.00049315,120]
[381073978,1755997844546,-480.0,0.00049315,120]
[381073979,1755997844555,-480.0,0.00049315,120]
[381073980,1755997844565,-480.0,0.00049315,120]
[381073981,1755997844574,-1613.55,0.00049315,120]
[381073982,1755997844583,-480.0,0.00049315,120]
[381073983,1755997844593,-480.0,0.00049315,120]
[381073984,1755997844602,-500.9,0.00049315,120]
[381073985,1755997844611,-480.0,0.00049315,120]
[381073986,1755997844620,-480.0,0.00049315,120]
[381073987,1755997844629,-480.0,0.00049315,120]
[381073988,1755997844639,-480.0,0.00049315,120]
[381073989,1755997844648,-1743.87,0.00049315,120]
[381073990,1755997844658,-480.0,0.00049315,120]
[381073991,1755997844667,-480.0,0.00049315,120]
[381073992,1755997844676,-480.0,0.00049315,120]
[381073993,1755997844685,-960.76,0.00049315,120]
[381073994,1755997844695,-151.0,0.00049315,120]
[381073995,1755997844704,-729.03,0.00049315,120]
[381073996,1755997844713,-480.0,0.00049315,120]
[381073997,1755997844724,-499.5,0.00049315,120]
[381073998,1755997844733,-480.0,0.00049315,120]
[381073999,1755997844742,-1925.61,0.00049315,120]
[381074000,1755997844751,-480.0,0.00049315,120]
[381074001,1755997844761,-558.11308035,0.00049315,120]
[381074002,1755997844771,-241.3427466,0.00049315,120]
[381074003,1755997844780,-480.0,0.00049315,120]
[381074004,1755997844789,-480.0,0.00049315,120]
[381074005,1755997844798,-1868.82,0.00049315,120]
[381074006,1755997844808,-480.0,0.00049315,120]
[381074007,1755997844817,-480.0,0.00049315,120]
[381074008,1755997844827,-480.0,0.00049315,120]
[381074009,1755997844836,-1177.01,0.00049315,120]
[381074010,1755997844846,-480.0,0.00049315,120]
[381074011,1755997844856,-729.78,0.00049315,120]
[381074012,1755997844866,-480.0,0.00049315,120]
[381074013,1755997844875,-537.84,0.00049315,120]
[381074014,1755997844885,-480.0,0.00049315,120]
[381074015,1755997844895,-480.0,0.00049315,120]
[381074016,1755997844905,-481.40556532,0.00049315,120]
[381074017,1755997844915,-480.0,0.00049315,120]
[381074018,1755997844925,-774.32,0.00049315,120]
[381074019,1755997844934,-480.0,0.00049315,120]
[381074020,1755997844943,-480.0,0.00049315,120]
[381074021,1755997844953,-480.0,0.00049315,120]
[381074022,1755997844962,-480.0,0.00049315,120]
[381074023,1755997844973,-480.0,0.00049315,120]
[381074024,1755997844982,-480.0,0.00049315,120]
[381074025,1755997844991,-462.98125245,0.00049315,120]
[381074026,1755997845001,-480.0,0.00049315,120]
[381074027,1755997845010,-480.0,0.00049315,30]
[381074028,1755997845020,-480.0,0.00049315,120]
[381074029,1755997845029,-497.43,0.00049315,120]
[381074030,1755997845039,-480.0,0.00049315,120]
[381074031,1755997845096,-480.0,0.00049315,120]
[381074032,1755997845106,-887.05,0.00049315,120]
[381074033,1755997845115,-1176.39,0.00049315,120]
[381074034,1755997845124,-480.0,0.00049315,120]
[381074035,1755997845134,-480.0,0.00049315,120]
[381074036,1755997845143,-151.0,0.00049315,120]
[381074037,1755997845152,-480.0,0.00049315,120]
[381074038,1755997845162,-490.69222152,0.00049315,120]
[381074039,1755997845171,-614.53,0.00049315,120]
[381074040,1755997845181,-480.0,0.00049315,120]
[381074041,1755997845190,-4300.74,0.00049315,120]
[381074042,1755997845200,-224.68469398,0.00049315,120]
[381074043,1755997845209,-1707.12,0.00049315,120]
[381074044,1755997845219,-1253.13,0.00049315,120]
[381074045,1755997845228,-480.0,0.00049315,120]
[381074046,1755997845238,-1153.74,0.00049315,120]
[381074047,1755997845247,-480.0,0.00049315,120]
[381074048,1755997845257,-607.75,0.00049315,120]
[381074049,1755997845266,-480.0,0.00049315,120]
[381074050,1755997845275,-480.0,0.00049315,120]
[381074051,1755997845285,-1059.4,0.00049315,120]
[381074052,1755997845294,-1265.06,0.00049315,120]
[381074053,1755997845303,-1661.49,0.00049315,120]
[381074054,1755997845313,-480.0,0.00049315,120]
[381074055,1755997845325,-480.0,0.00049315,120]
[381074056,1755997845337,-627.56681212,0.00049315,120]
[381074057,1755997845346,-565.25,0.00049315,120]
[381074058,1755997845356,-151.0,0.00049315,120]
[381074059,1755997845367,-151.0,0.00049315,120]
[381074060,1755997845377,-151.0,0.00049315,120]
[381074061,1755997845386,-255.283709,0.00049315,120]
[381074062,1755997845397,-480.0,0.00049315,120]
[381074063,1755997845408,-480.0,0.00049315,120]
[381074064,1755997845418,-480.0,0.00049315,120]
[381074065,1755997845427,-3405.09,0.00049315,120]
[381074066,1755997845437,-1361.96,0.00049315,120]
[381074067,1755997845447,-1361.96,0.00049315,120]
[381074068,1755997845456,-1361.96,0.00049315,120]
[381074069,1755997845465,-480.0,0.00049315,120]
[381074070,1755997845474,-637.18,0.00049315,120]
[381074071,1755997845484,-1361.96,0.00049315,120]
[381074072,1755997845493,-1361.96,0.00049315,120]
[381074073,1755997845503,-1361.96,0.00049315,120]
[381074074,1755997845513,-1361.96,0.00049315,120]
[381074075,1755997845525,-761.98,0.00049315,120]
[381074076,1755997845535,-1361.96,0.00049315,120]
[381074077,1755997845544,-1361.96,0.00049315,120]
[381074078,1755997845556,-480.0,0.00049315,120]
[381074079,1755997845566,-480.0,0.00049315,120]
[381074080,1755997845575,-480.0,0.00049315,120]
[381074081,1755997845584,-1361.96,0.00049315,120]
[381074082,1755997845594,-1361.96,0.00049315,120]
[381074083,1755997845603,-1361.96,0.00049315,120]
[381074084,1755997845613,-4038.83,0.00049315,120]
[381074085,1755997845622,-1361.96,0.00049315,120]
[381074086,1755997845631,-1361.96,0.00049315,120]
[381074087,1755997845640,-480.0,0.00049315,120]
[381074088,1755997845649,-1361.96,0.00049315,120]
[381074089,1755997845659,-1361.96,0.00049315,120]
[381074090,1755997845668,-1361.96,0.00049315,120]
[381074091,1755997845678,-1361.96,0.00049315,120]
[381074092,1755997845687,-480.0,0.00049315,120]
[381074093,1755997845697,-1361.96,0.00049315,120]
[381074094,1755997845707,-1361.96,0.00049315,120]
[381074095,1755997845716,-1361.96,0.00049315,120]
[381074096,1755997845727,-486.7,0.00049315,120]
[381074097,1755997845737,-1361.96,0.00049315,120]
[381074098,1755997845746,-1361.96,0.00049315,120]
[381074099,1755997845755,-1362.02673865,0.00049315,120]
[381074100,1755997845765,-480.0,0.00049315,120]
[381074101,1755997845775,-2480.5,0.00049315,120]
[381074102,1755997845784,-575.4,0.00049315,120]
[381074103,1755997845802,-1032.02,0.00049315,120]
[381074104,1755997845811,-480.0,0.00049315,120]
[381074105,1755997845820,-2712.33,0.00049315,120]
[381074106,1755997845830,-480.0,0.00049315,120]
[381074107,1755997845841,-480.0,0.00049315,120]
[381074108,1755997845858,-480.0,0.00049315,120]
[381074110,1755997845869,-480.0,0.00049315,120]
[381074111,1755997845879,-480.0,0.00049315,120]
[381074112,1755997845888,-480.0,0.00049315,120]
[381074113,1755997845897,-480.0,0.00049315,120]
[381074114,1755997845907,-480.0,0.00049315,120]
[381074115,1755997845916,-480.0,0.00049315,120]
[381074116,1755997845926,-480.0,0.00049315,120]
[381074117,1755997845935,-1045.93,0.00049315,120]
[381074118,1755997845944,-1019.32,0.00049315,120]
[381074119,1755997845953,-480.0,0.00049315,120]
[381074120,1755997845962,-480.0,0.00049315,120]
[381074121,1755997845972,-1424.26,0.00049315,120]
[381074122,1755997845982,-472.13734071,0.00049315,120]
[381074123,1755997845991,-480.0,0.00049315,120]
[381074124,1755997846001,-3568.07,0.00049315,120]
[381074125,1755997846011,-2235.09,0.00049315,120]
[381074126,1755997846020,-422.75740738,0.00049315,120]
[381074127,1755997846030,-625.29,0.00049315,120]
[381074128,1755997846039,-480.0,0.00049315,120]
[381074129,1755997846048,-480.0,0.00049315,7]
[381074130,1755997846058,-903.42,0.00049315,120]
[381074131,1755997846068,-480.0,0.00049315,120]
[381074132,1755997846078,-480.0,0.00049315,120]
[381074133,1755997846087,-480.0,0.00049315,120]
[381074134,1755997846096,-480.0,0.00049315,120]
[381074135,1755997846105,-480.0,0.00049315,120]
[381074136,1755997846115,-480.0,0.00049315,120]
[381074137,1755997846124,-480.0,0.00049315,120]
[381074138,1755997846133,-480.0,0.00049315,120]
[381074139,1755997846142,-1407.28,0.00049315,120]
[381074140,1755997846151,-520.26,0.00049315,120]
[381074141,1755997846161,-480.0,0.00049315,120]
[381074142,1755997846170,-480.0,0.00049315,120]
[381074143,1755997846179,-480.0,0.00049315,120]
[381074144,1755997846188,-2000.89,0.00049315,120]
[381074145,1755997846198,-480.0,0.00049315,120]
[381074146,1755997846208,-635.95,0.00049315,120]
[381074147,1755997846217,-1256.06,0.00049315,30]
[381074148,1755997846228,-1000.0,0.00049315,120]
[381074149,1755997846237,-684.4,0.00049315,120]
[381074150,1755997846247,-480.0,0.00049315,120]
[381074151,1755997846256,-480.0,0.00049315,120]
[381074152,1755997846265,-480.0,0.00049315,120]
[381074153,1755997846274,-480.0,0.00049315,120]
[381074154,1755997846284,-480.0,0.00049315,120]
[381074155,1755997846294,-151.0,0.00049315,120]
[381074156,1755997846304,-151.0,0.00049315,120]
[381074158,1755997846314,-298.503928,0.00049315,120]
[381074159,1755997846323,-976.84,0.00049315,120]
[381074160,1755997846337,-951.8,0.00049315,120]
[381074161,1755997846346,-480.35927859,0.00049315,120]
[381074162,1755997846355,-480.0,0.00049315,120]
[381074163,1755997846365,-480.0,0.00049315,120]
[381074164,1755997846374,-480.0,0.00049315,120]
[381074165,1755997846384,-770.56,0.00049315,120]
[381074166,1755997846393,-480.0,0.00049315,120]
[381074167,1755997846403,-1419.6,0.00049315,120]
[381074168,1755997846412,-471.65950724,0.00049315,120]
[381074169,1755997846422,-480.0,0.00049315,120]
[381074170,1755997846431,-833.63,0.00049315,120]
[381074171,1755997846440,-151.0,0.00049315,120]
[381074172,1755997846449,-151.0,0.00049315,120]
[381074173,1755997846460,-151.0,0.00049315,120]
[381074174,1755997846471,-480.0,0.00049315,120]
[381074175,1755997846480,-480.0,0.00049315,120]
[381074176,1755997846489,-151.0,0.00049315,120]
[381074177,1755997846499,-151.0,0.00049315,120]
[381074178,1755997846508,-215.721088,0.00049315,120]
[381074179,1755997846518,-480.0,0.00049315,120]
[381074180,1755997846529,-1213.91,0.00049315,120]
[381074181,1755997846538,-761.28,0.00049315,120]
[381074182,1755997846548,-480.0,0.00049315,120]
[381074183,1755997846558,-480.0,0.00049315,120]
[381074184,1755997846568,-480.0,0.00049315,120]
[381074185,1755997846578,-480.0,0.00049315,120]
[381074186,1755997846587,-5981.21,0.00049315,120]
[381074187,1755997846596,-151.0,0.00049315,120]
[381074188,1755997846605,-151.0,0.00049315,120]
[381074189,1755997846615,-151.0,0.00049315,14]
[381074190,1755997846624,-151.0,0.00049315,120]
[381074191,1755997846637,-151.0,0.00049315,14]
[381074192,1755997846646,-480.0,0.00049315,120]
[381074193,1755997846655,-151.0,0.00049315,14]
[381074194,1755997846665,-480.0,0.00049315,120]
[381074195,1755997846674,-480.0,0.00049315,120]
[381074196,1755997846683,-574.88260321,0.00049315,120]
[381074197,1755997846692,-151.0,0.00049315,120]
[381074198,1755997846702,-151.0,0.00049315,120]
[381074199,1755997846711,-151.0,0.00049315,120]
[381074200,1755997846721,-480.0,0.00049315,90]
[381074201,1755997846730,-151.0,0.00049315,120]
[381074202,1755997846739,-1575.8,0.00049315,120]
[381074203,1755997846749,-480.0,0.00049315,120]
[381074204,1755997846762,-742.06,0.00049315,120]
[381074205,1755997846771,-151.0,0.00049315,120]
[381074206,1755997846780,-4077.46,0.00049315,120]
[381074207,1755997846790,-151.0,0.00049315,120]
[381074208,1755997846799,-2631.11,0.00049315,120]
[381074209,1755997846808,-480.0,0.00049315,120]
[381074210,1755997846817,-806.03,0.00049315,120]
[381074211,1755997846826,-480.0,0.00049315,120]
[381074212,1755997846835,-480.0,0.00049315,120]
[381074213,1755997846845,-151.0,0.00049315,120]
[381074214,1755997846854,-480.0,0.00049315,120]
[381074215,1755997846863,-423.24830973,0.00049315,120]
[381074216,1755997846872,-151.0,0.00049315,120]
[381074217,1755997846882,-480.0,0.00049315,120]
[381074218,1755997846891,-151.0,0.00049315,120]
[381074219,1755997846901,-151.0,0.00049315,120]
[381074220,1755997846910,-151.0,0.00049315,120]
[381074221,1755997846920,-151.0,0.00049315,120]
[381074222,1755997846929,-151.0,0.00049315,120]
[381074223,1755997846939,-151.290093,0.00049315,120]
[381074224,1755997846949,-884.09,0.00049315,120]
[381074225,1755997846958,-151.0,0.00049315,120]
[381074226,1755997846968,-151.0,0.00049315,120]
[381074227,1755997846979,-480.0,0.00049315,120]
[381074228,1755997846989,-464.64492032,0.00049315,120]
[381074229,1755997846998,-151.0,0.00049315,120]
[381074230,1755997847007,-151.0,0.00049315,120]
[381074231,1755997847016,-151.0,0.00049315,120]
[381074232,1755997847025,-480.0,0.00049315,120]
[381074233,1755997847035,-151.0,0.00049315,120]
[381074234,1755997847044,-480.0,0.00049315,120]
[381074235,1755997847053,-480.0,0.00049315,120]
[381074236,1755997847063,-480.0,0.00049315,120]
[381074237,1755997847072,-7299.61,0.00049315,120]
[381074238,1755997847081,-151.0,0.00049315,120]
[381074239,1755997847090,-151.0,0.00049315,120]
[381074240,1755997847099,-151.0,0.00049315,120]
[381074241,1755997847108,-151.0,0.00049315,120]
[381074242,1755997847118,-151.0,0.00049315,120]
[381074243,1755997847127,-151.0,0.00049315,120]
[381074244,1755997847136,-151.0,0.00049315,120]
[381074245,1755997847146,-151.0,0.00049315,120]
[381074246,1755997847155,-151.0,0.00049315,120]
[381074247,1755997847164,-480.0,0.00049315,120]
[381074248,1755997847173,-681.94,0.00049315,120]
[381074249,1755997847183,-151.0,0.00049315,120]
[381074250,1755997847192,-151.0,0.00049315,120]
[381074251,1755997847201,-165.87036,0.00049315,120]
[381074252,1755997847211,-1202.55,0.00049315,120]
[381074253,1755997847220,-151.0,0.00049315,120]
[381074254,1755997847229,-480.0,0.00049315,120]
[381074255,1755997847239,-151.0,0.00049315,120]
[381074256,1755997847248,-151.0,0.00049315,120]
[381074257,1755997847257,-195.116208,0.00049315,120]
[381074258,1755997847267,-151.0,0.00049315,120]
[381074259,1755997847276,-480.0,0.00049315,120]
[381074260,1755997847285,-151.0,0.00049315,120]
[381074261,1755997847295,-206.447629,0.00049315,120]
[381074262,1755997847304,-480.0,0.00049315,120]
[381074263,1755997847314,-480.0,0.00049315,120]
[381074264,1755997847323,-10265.24,0.00049315,120]
[381074265,1755997847336,-2882.89,0.00049315,120]
[381074266,1755997847346,-480.0,0.00049315,120]
[381074267,1755997847355,-480.0,0.00049315,120]
[381074268,1755997847364,-1937.85,0.00049315,120]
[381074269,1755997847374,-151.0,0.00049315,120]
[381074270,1755997847384,-480.0,0.00049315,120]
[381074271,1755997847394,-151.0,0.00049315,120]
[381074272,1755997847406,-461.03405347,0.00049315,120]
[381074273,1755997847416,-153.749092,0.00049315,120]
[381074274,1755997847425,-619.59,0.00049315,120]
[381074275,1755997847435,-480.0,0.00049315,120]
[381074276,1755997847444,-480.0,0.00049315,120]
[381074277,1755997847454,-1079.49,0.00049315,120]
[381074278,1755997847463,-431.5693994,0.00049315,120]
[381074279,1755997847474,-480.0,0.00049315,120]
[381074280,1755997847484,-480.0,0.00049315,120]
[381074281,1755997847493,-1865.83,0.00049315,120]
[381074282,1755997847503,-666.24,0.00049315,120]
[381074283,1755997847512,-1781.24,0.00049315,120]
[381074284,1755997847521,-480.0,0.00049315,120]
[381074285,1755997847530,-480.0,0.00049315,120]
[381074286,1755997847539,-851.52,0.00049315,120]
[381074287,1755997847549,-480.0,0.00049315,120]
[381074288,1755997847558,-480.0,0.00049315,120]
[381074289,1755997847567,-480.0,0.00049315,120]
[381074290,1755997847577,-480.0,0.00049315,120]
[381074291,1755997847586,-754.73,0.00049315,120]
[381074292,1755997847595,-480.0,0.00049315,120]
[381074293,1755997847604,-480.0,0.00049315,120]
[381074294,1755997847613,-2449.69,0.00049315,120]
[381074295,1755997847622,-1651.68,0.00049315,120]
[381074296,1755997847631,-480.0,0.00049315,120]
[381074297,1755997847641,-3111.62,0.00049315,120]
[381074298,1755997847650,-480.0,0.00049315,120]
[381074299,1755997847658,-480.0,0.00049315,120]
[381074300,1755997847667,-2940.85,0.00049315,120]
[381074301,1755997847677,-480.0,0.00049315,120]
[381074302,1755997847686,-482.5455094,0.00049315,120]
[381074303,1755997847696,-1470.84,0.00049315,120]
[381074304,1755997847706,-480.0,0.00049315,120]
[381074305,1755997847718,-480.0,0.00049315,20]
[381074306,1755997847728,-258.78021444,0.00049315,120]